bitfinex-derivatives/quotes_SOLF0:USTF0_20260121
["timestamp","ask_amount","ask_price","bid_price","bid_amount"]
[1769014129793,110.2487,127.09,127.03,3.179e-05]
[1769014130598,7.0878,127.08,127.03,3.179e-05]
[1769014130805,110.2487,127.09,127.03,3.179e-05]
[1769014131005,110.2487,127.09,126.98,3.32927576]
[1769014131006,110.2505,127.08,126.98,3.32927576]
[1769014131189,7.0892,127.05,126.98,3.32927576]
[1769014132409,110.2785,127.05,126.95,3.32927576]
[1769014132792,110.2711,127.06,126.95,3.32927576]
[1769014133307,7.0894,127.05,126.95,3.32927576]
[1769014133605,6.46468603,127.07,126.97,3.32927576]
[1769014134608,297.54,127.09,126.96,110.3527]
[1769014134609,7.0887,127.06,126.98,10.42217576]
[1769014136004,7.0878,127.08,126.98,10.42217576]
[1769014136304,110.2437,127.09,126.99,3.32927576]
[1769014136498,6.46468603,127.1,127.0,10.42107576]
[1769014136900,110.222,127.12,127.02,7.0906]
[1769014137101,6.46468603,127.13,127.01,3.32927576]
[1769014137307,110.2008,127.14,127.02,3.32927576]
[1769014137806,116.64928603,127.16,127.04,3.32927576]
[1769014137807,110.1846,127.16,127.04,3.32927576]
[1769014138609,7.0832,127.16,127.06,10.37451166]
[1769014139705,7.0837,127.15,127.06,3.28611166]
[1769014140205,7.0843,127.14,127.06,3.28611166]
[1769014140405,110.1812,127.16,127.03,3.28611166]
[1769014140597,110.198,127.14,127.03,3.28611166]
[1769014140800,13.54898603,127.14,127.03,3.28611166]
[1769014141009,7.0843,127.14,127.03,3.28611166]
[1769014141204,116.63778603,127.17,127.05,3.28611166]
[1769014141411,7.0833,127.16,127.07,10.37391166]
[1769014141611,116.58818603,127.23,127.1,3.28611166]
[1769014141809,7.0798,127.22,127.13,7.0844]
[1769014142114,6.46468603,127.26,127.14,3.28611166]
[1769014142902,116.53688603,127.29,127.17,3.28611166]
[1769014143114,110.077,127.28,127.17,3.28611166]
[1769014143309,110.0718,127.29,127.17,3.28611166]
[1769014143509,7.0771,127.27,127.18,10.36771166]
[1769014143711,110.0789,127.28,127.18,3.28611166]
[1769014143913,110.0951,127.26,127.18,3.28611166]
[1769014144113,7.0782,127.25,127.18,3.28611166]
[1769014144814,110.087,127.27,127.18,3.28611166]
[1769014145117,110.0789,127.28,127.18,3.28611166]
[1769014145118,6.46468603,127.29,127.18,3.28611166]
[1769014145309,110.0686,127.29,127.18,3.28611166]
[1769014145711,414.05258603,127.32,127.19,3.28611166]
[1769014146011,116.51258603,127.32,127.19,3.28611166]
[1769014146314,454.2168,127.35,127.22,3.28611166]
[1769014146315,116.48708603,127.35,127.22,3.28611166]
[1769014146704,7.0737,127.33,127.23,10.36491166]
[1769014147508,7.0722,127.36,127.26,3.28611166]
[1769014147814,110.0001,127.37,127.26,3.28611166]
[1769014148006,6.46468603,127.4,127.26,3.28611166]
[1769014148212,116.41738603,127.43,127.31,3.28611166]
[1769014148614,13.53278603,127.43,127.31,3.28611166]
[1769014149013,116.38918603,127.46,127.34,3.28611166]
[1769014149207,7.067,127.45,127.34,3.28611166]
[1769014149409,116.41168603,127.43,127.3,3.28611166]
[1769014149712,109.931,127.45,127.33,3.28611166]
[1769014150112,6.46468603,127.46,127.33,3.28611166]
[1769014150113,6.46468603,127.46,127.35,3.28611166]
[1769014150618,116.9693,127.48,127.37,3.28611166]
[1769014150912,6.46468603,127.49,127.37,3.28611166]
[1769014151213,116.34118603,127.52,127.4,3.28611166]
[1769014151414,109.8801,127.51,127.4,3.28611166]
[1769014151603,116.34118603,127.52,127.4,3.28611166]
[1769014152010,109.8893,127.5,127.4,3.28611166]
[1769014152212,109.9064,127.48,127.36,3.28611166]
[1769014152608,116.972,127.48,127.36,3.28611166]
[1769014153315,116.9802,127.47,127.36,3.28611166]
[1769014153618,116.9802,127.47,127.33,110.0266]
[1769014153619,109.9294,127.45,127.33,10.35951166]
[1769014153818,109.9294,127.45,127.34,3.28611166]
[1769014154018,116.9963,127.45,127.34,3.28611166]
[1769014154220,109.9391,127.44,127.34,3.28611166]
[1769014154515,109.9391,127.44,127.3,117.1274]
[1769014154516,117.0243,127.42,127.3,113.33881166]
[1769014154913,117.0243,127.42,127.31,3.28611166]
[1769014155115,109.9643,127.41,127.31,3.28611166]
[1769014155318,7.0695,127.41,127.31,3.28611166]
[1769014155617,109.9683,127.41,127.31,3.28611166]
[1769014156118,7.0701,127.4,127.31,3.28611166]
[1769014157109,117.0434,127.4,127.31,3.28611166]
[1769014157321,7.0701,127.4,127.31,3.28611166]
[1769014158614,117.0431,127.4,127.31,3.28611166]
[1769014158811,109.9837,127.39,127.31,3.28611166]
[1769014159208,117.061,127.38,127.31,3.28611166]
[1769014159410,109.9683,127.41,127.31,3.28611166]
[1769014159713,109.9816,127.39,127.27,3.17825406]
[1769014160217,116.4391367,127.4,127.28,3.17825406]
[1769014160618,7.0711,127.38,127.28,3.17825406]
[1769014160913,109.9683,127.41,127.29,3.17825406]
[1769014161910,109.9812,127.39,127.29,3.17825406]
[1769014162925,7.0715,127.37,127.29,3.17825406]
[1769014163109,110.0078,127.36,127.26,3.17825406]
[1769014163423,7.0726,127.35,127.27,3.17825406]
[1769014164123,7.0726,127.35,127.24,7.0782]
[1769014164124,7.0733,127.34,127.24,10.25645406]
[1769014164315,110.0264,127.34,127.24,3.17825406]
[1769014164625,7.0744,127.32,127.24,3.17825406]
[1769014164821,110.0419,127.32,127.21,3.17825406]
[1769014165029,110.0507,127.31,127.21,3.17825406]
[1769014165223,7.076,127.29,127.21,3.17825406]
[1769014165709,7.075,127.31,127.21,10.25825406]
[1769014166828,110.0538,127.31,127.21,10.25825406]
[1769014167523,7.076,127.29,127.21,10.25825406]
[1769014168313,116.5068367,127.32,127.21,10.25825406]
[1769014168314,116.5068367,127.32,127.21,3.17825406]
[1769014168515,7.0747,127.31,127.22,3.17825406]
[1769014168723,6.4649367,127.32,127.22,3.17825406]
[1769014168724,116.5090367,127.32,127.22,3.17825406]
[1769014168920,7.0754,127.3,127.22,10.25765406]
[1769014169123,110.0132,127.36,127.25,3.17825406]
[1769014169315,116.4579367,127.38,127.25,3.17825406]
[1769014169511,110.0094,127.36,127.26,7.0772]
[1769014170511,110.0159,127.35,127.25,3.17825406]
[1769014170931,110.0094,127.36,127.25,3.17825406]
[1769014171428,7.0726,127.35,127.26,7.0772]
[1769014171626,110.0025,127.37,127.26,7.0772]
[1769014172228,7.0731,127.34,127.26,7.0772]
[1769014172631,110.0025,127.37,127.27,7.0766]
[1769014173230,116.4579367,127.38,127.28,7.0759]
[1769014173430,6.4649367,127.38,127.27,3.17825406]
[1769014174316,6.4649367,127.41,127.3,3.17825406]
[1769014174518,109.9429,127.44,127.31,3.17825406]
[1769014174519,116.4078367,127.44,127.31,3.17825406]
[1769014174724,116.4078367,127.44,127.32,3.17825406]
[1769014175029,7.0684,127.43,127.34,7.0727]
[1769014175330,6.4649367,127.44,127.34,3.17825406]
[1769014175534,116.4086367,127.44,127.34,3.17825406]
[1769014176027,6.4649367,127.44,127.34,10.25095406]
[1769014176419,109.9266,127.46,127.34,10.25095406]
[1769014176420,7.0682,127.43,127.35,7.0723]
[1769014177024,7.0672,127.45,127.35,10.25055406]
[1769014177235,7.0672,127.45,127.36,10.24995406]
[1769014177529,6.4649367,127.47,127.37,3.17825406]
[1769014177724,116.3833367,127.47,127.37,3.17825406]
[1769014178127,7.0676,127.44,127.37,3.17825406]
[1769014178334,109.932,127.45,127.33,3.17825406]
[1769014179033,7.0686,127.42,127.34,10.25075406]
[1769014180030,7.0677,127.44,127.36,3.17825406]
[1769014180338,6.4649367,127.47,127.36,3.17825406]
[1769014180524,109.9218,127.46,127.36,3.17825406]
[1769014181636,6.4649367,127.47,127.37,3.17825406]
[1769014181836,109.9207,127.46,127.37,3.17825406]
[1769014182635,109.9387,127.44,127.34,3.17825406]
[1769014182926,109.9302,127.45,127.34,3.17825406]
[1769014183243,7.0692,127.41,127.34,3.17825406]
[1769014183423,109.9557,127.42,127.32,7.0737]
[1769014183736,109.9557,127.42,127.32,10.25195406]
[1769014183934,109.9475,127.43,127.33,10.25135406]
[1769014184436,109.9727,127.4,127.29,3.17825406]
[1769014185027,7.0709,127.38,127.3,10.25335406]
[1769014185727,7.07,127.4,127.31,10.21223473]
[1769014185931,116.4028367,127.44,127.32,3.13773473]
[1769014186824,7.0689,127.42,127.33,10.21113473]
[1769014187028,109.9281,127.46,127.34,3.13773473]
[1769014187632,7.0678,127.44,127.36,10.20913473]
[1769014188334,7.0678,127.44,127.37,3.13773473]
[1769014188534,7.0667,127.46,127.37,3.13773473]
[1769014188932,7.0656,127.48,127.39,3.13773473]
[1769014189331,109.8949,127.49,127.39,3.13773473]
[1769014189834,7.065,127.49,127.4,3.13773473]
[1769014190132,6.4649367,127.52,127.41,3.13773473]
[1769014190636,109.8869,127.5,127.38,3.13773473]
[1769014191232,7.066,127.47,127.38,3.13773473]
[1769014191733,7.0664,127.46,127.38,10.20833473]
[1769014191933,219.8182,127.48,127.38,3.13773473]
[1769014192334,219.8182,127.48,127.38,10.20823473]
[1769014192728,6.4649367,127.49,127.38,3.13773473]
[1769014192934,7.0656,127.48,127.39,10.20783473]
[1769014193523,6.4649367,127.49,127.39,10.20783473]
[1769014193524,7.066,127.47,127.39,3.13773473]
[1769014193727,116.3628367,127.49,127.37,7.0708]
[1769014193728,109.9054,127.48,127.37,7.0708]
[1769014193933,109.9169,127.47,127.36,3.13773473]
[1769014194329,109.9169,127.47,127.31,133.7429]
[1769014194330,109.9302,127.45,127.33,3.13773473]
[1769014194636,116.3858367,127.46,127.34,3.13773473]
[1769014195431,7.0677,127.44,127.35,3.13773473]
[1769014195930,6.4649367,127.46,127.35,3.13773473]
[1769014196128,6.4649367,127.46,127.37,7.0712]
[1769014196129,7.0669,127.45,127.37,7.0712]
[1769014196323,116.3925367,127.46,127.35,3.13773473]
[1769014196522,109.9384,127.44,127.32,3.13773473]
[1769014196938,116.4144367,127.43,127.32,10.21133473]
[1769014197733,7.0698,127.4,127.32,10.21133473]
[1769014198835,7.0688,127.42,127.33,10.24470065]
[1769014199836,109.9298,127.45,127.35,3.17130065]
[1769014200134,109.9409,127.44,127.32,3.17130065]
[1769014200342,109.957,127.42,127.32,3.17130065]
[1769014200540,109.9777,127.4,127.29,3.17130065]
[1769014201232,110.0078,127.36,127.26,3.17130065]
[1769014201633,116.4829367,127.35,127.23,3.17130065]
[1769014201834,109.999,127.37,127.26,3.17130065]
[1769014202237,116.4570367,127.38,127.26,3.17130065]
[1769014202431,7.0715,127.37,127.28,7.076]
[1769014202633,109.9986,127.37,127.26,3.17130065]
[1769014202836,110.0077,127.36,127.26,3.17130065]
[1769014203138,116.4570367,127.38,127.26,10.24830065]
[1769014203333,116.4570367,127.38,127.26,3.17130065]
[1769014203542,6.4649367,127.38,127.26,3.17130065]
[1769014203732,13.5360367,127.38,127.28,7.0758]
[1769014203932,6.4649367,127.38,127.28,110.0737]
[1769014204136,6.4649367,127.41,127.29,3.17130065]
[1769014204839,109.9823,127.39,127.26,113.26130065]
[1769014205136,6.4649367,127.38,127.27,3.17130065]
[1769014205340,13.5358367,127.38,127.29,7.0756]
[1769014205937,7.0714,127.37,127.29,7.0756]
[1769014206628,110.008,127.36,127.24,3.17130065]
[1769014207032,116.4818367,127.35,127.24,3.17130065]
[1769014207227,110.0041,127.37,127.26,3.17130065]
[1769014207539,116.4841367,127.35,127.23,3.17130065]
[1769014208332,7.0742,127.32,127.23,3.17130065]
[1769014208638,6.4649367,127.3,127.17,110.1638]
[1769014208839,6.4649367,127.31,127.2,3.17130065]
[1769014209043,7.0756,127.3,127.2,3.17130065]
[1769014209540,7.0764,127.28,127.19,7.081]
[1769014210236,13.5413367,127.28,127.19,7.081]
[1769014211042,7.077,127.27,127.19,7.081]
[1769014212037,7.0777,127.26,127.17,10.25330065]
[1769014212239,6.4649367,127.28,127.17,3.17130065]
[1769014213140,6.4649367,127.28,127.19,7.081]
[1769014213937,6.4649367,127.28,127.17,10.25330065]
[1769014214548,7.0776,127.26,127.18,7.0817]
[1769014215738,7.0767,127.28,127.19,3.26805708]
[1769014215943,110.081,127.28,127.16,3.26805708]
[1769014216342,7.0776,127.26,127.18,7.0816]
[1769014216947,7.0776,127.26,127.18,10.34965708]
[1769014217350,6.47885444,127.29,127.2,10.34865708]
[1769014217542,6.47885444,127.29,127.17,110.1683]
[1769014217543,6.47885444,127.29,127.18,3.26805708]
[1769014218238,6.47885444,127.29,127.2,3.26805708]
[1769014218437,116.52775444,127.32,127.2,3.26805708]
[1769014218848,116.52775444,127.32,127.23,7.079]
[1769014218849,7.0748,127.31,127.23,7.079]
[1769014219045,7.0748,127.31,127.22,3.26805708]
[1769014219745,7.0739,127.33,127.24,7.0784]
[1769014220049,6.47885444,127.35,127.24,7.0784]
[1769014220342,7.0742,127.32,127.22,10.34725708]
[1769014220547,7.0742,127.32,127.23,3.26805708]
[1769014220745,6.47885444,127.35,127.23,3.26805708]
[1769014220944,7.0725,127.35,127.27,7.0767]
[1769014221547,7.073,127.34,127.25,10.34555708]
[1769014221849,116.49455444,127.35,127.25,3.26805708]
[1769014222451,6.47885444,127.38,127.26,3.26805708]
[1769014222743,116.47115444,127.38,127.26,3.26805708]
[1769014223745,110.0084,127.36,127.23,113.38275708]
[1769014224047,116.52055444,127.32,127.2,3.26805708]
[1769014224646,220.1101,127.31,127.2,3.26805708]
[1769014225954,7.0765,127.28,127.2,10.34865708]
[1769014226749,30.17885444,127.32,127.21,10.34805708]
[1769014226750,7.0756,127.3,127.21,10.34805708]
[1769014226952,7.0756,127.3,127.21,3.26805708]
[1769014227243,6.47885444,127.32,127.22,3.26805708]
[1769014227450,110.0502,127.31,127.19,3.26805708]
[1769014227641,7.0758,127.29,127.21,7.08]
[1769014228249,7.0758,127.29,127.21,10.34805708]
[1769014229036,7.0765,127.28,127.21,3.26805708]
[1769014229239,7.0765,127.28,127.18,3.26805708]
[1769014229646,110.0566,127.31,127.22,3.26805708]
[1769014229840,110.0566,127.31,127.21,7.0801]
[1769014230036,110.0744,127.29,127.19,3.26805708]
[1769014230244,110.0937,127.26,127.16,3.26805708]
[1769014230448,110.1052,127.25,127.13,3.26805708]
[1769014232156,7.0792,127.23,127.15,3.26805708]
[1769014232750,7.0784,127.25,127.16,3.26805708]
[1769014233144,110.096,127.26,127.16,3.26805708]
[1769014233453,7.0787,127.24,127.16,3.26805708]
[1769014234942,7.0778,127.26,127.16,3.26805708]
[1769014236049,7.0778,127.26,127.15,110.1825]
[1769014236050,7.0778,127.26,127.17,10.35005708]
[1769014236558,7.0778,127.26,127.18,3.26805708]
[1769014237751,7.0778,127.26,127.18,10.34975708]
[1769014237950,110.0838,127.28,127.15,110.1825]
[1769014237951,7.0765,127.28,127.19,3.26805708]
[1769014238545,6.47885444,127.27,127.16,7.0825]
[1769014238747,110.0947,127.26,127.14,3.26805708]
[1769014239042,110.1023,127.25,127.14,3.26805708]
[1769014239251,7.0792,127.23,127.15,7.0834]
[1769014239447,7.0792,127.23,127.11,3.26805708]
[1769014239448,110.1304,127.22,127.11,3.26805708]
[1769014239652,116.61625444,127.21,127.11,3.26805708]
[1769014239854,7.0815,127.19,127.11,3.26805708]
[1769014240050,110.1457,127.2,127.11,3.26805708]
[1769014240360,6.47885444,127.22,127.11,3.26805708]
[1769014240550,116.60985444,127.22,127.11,3.26805708]
[1769014240743,110.1367,127.21,127.11,3.26805708]
[1769014241142,7.0816,127.19,127.1,7.0862]
[1769014241350,110.1367,127.21,127.08,3.26805708]
[1769014241545,116.63395444,127.19,127.08,3.26805708]
[1769014241951,6.47885444,127.19,127.08,10.35505708]
[1769014242152,116.63645444,127.19,127.08,10.35505708]
[1769014242746,13.56055444,127.19,127.1,7.086]
[1769014242946,7.0817,127.19,127.1,7.086]
[1769014243149,116.63645444,127.19,127.06,3.26805708]
[1769014243544,7.0827,127.17,127.07,7.0875]
[1769014243844,6.47885444,127.16,127.06,3.26805708]
[1769014244250,7.0837,127.15,127.06,3.26805708]
[1769014246143,7.0837,127.15,127.04,7.0893]
[1769014246144,110.1987,127.14,127.03,3.39809337]
[1769014246552,110.1919,127.15,127.03,3.39809337]
[1769014246857,7.0849,127.13,127.04,3.39809337]
[1769014248960,110.2149,127.12,127.01,10.48909337]
[1769014249152,110.2258,127.11,127.01,3.39809337]
[1769014249352,110.2258,127.11,126.98,110.3288]
[1769014249353,110.2513,127.08,126.98,3.39809337]
[1769014249555,116.73845444,127.07,126.95,214.90459065]
[1769014249756,6.47885444,127.07,126.96,3.39809337]
[1769014250155,116.71245444,127.1,126.98,3.39809337]
[1769014250459,110.242,127.09,126.98,3.39809337]
[1769014250652,7.0877,127.08,126.98,3.39809337]
[1769014250954,116.73715444,127.07,126.98,3.39809337]
[1769014252063,7.0889,127.06,126.98,3.39809337]
[1769014252665,6.47885444,127.07,126.98,3.39809337]
[1769014253159,116.73925444,127.07,126.96,7.0937]
[1769014253362,116.73925444,127.07,126.96,10.49179337]
[1769014253660,7.0888,127.06,126.96,3.39809337]
[1769014254263,117.3376,127.08,126.97,3.39809337]
[1769014254464,7.0877,127.08,126.97,3.39809337]
[1769014254665,7.0877,127.08,126.98,3.39809337]
[1769014255061,7.0882,127.07,126.98,3.39809337]
[1769014255258,110.2432,127.09,126.98,3.39809337]
[1769014255259,110.252,127.08,126.98,3.39809337]
[1769014255762,110.263,127.07,126.98,3.39809337]
[1769014255965,6.47885444,127.07,126.98,3.39809337]
[1769014256967,13.56715444,127.07,126.98,3.39809337]
[1769014257664,7.0883,127.07,126.98,3.39809337]
[1769014258058,110.2581,127.07,126.95,10.49239337]
[1769014258265,110.2581,127.07,126.96,3.39809337]
[1769014258761,110.2755,127.05,126.96,3.39809337]
[1769014259062,6.47885444,127.07,126.97,3.1827496]
[1769014259267,7.0884,127.07,126.97,3.1827496]
[1769014260065,7.089,127.06,126.97,10.2760496]
[1769014260262,110.2585,127.07,126.97,10.2760496]
[1769014260462,110.2754,127.05,126.94,3.1827496]
[1769014260656,110.2689,127.06,126.94,3.1827496]
[1769014260970,110.2537,127.08,126.96,3.1827496]
[1769014261159,6.47885444,127.1,126.99,3.1827496]
[1769014261365,110.2051,127.14,127.02,3.1827496]
[1769014261670,7.0864,127.1,127.02,3.1827496]
[1769014262073,110.2175,127.12,127.02,3.1827496]
[1769014262259,110.2236,127.11,127.0,7.0914]
[1769014262460,110.2175,127.12,127.0,3.1827496]
[1769014262659,110.2051,127.14,127.01,3.1827496]
[1769014262888,7.0856,127.12,127.03,3.1827496]
[1769014263069,6.47885444,127.15,127.03,3.1827496]
[1769014263070,110.1895,127.15,127.03,3.1827496]
[1769014263372,7.0848,127.13,127.04,7.0895]
[1769014263573,7.0848,127.13,127.04,10.2722496]
[1769014264167,7.0854,127.12,127.04,3.1827496]
[1769014265076,110.2233,127.11,127.01,3.1827496]
[1769014265276,110.2177,127.12,127.01,3.1827496]
[1769014265464,110.207,127.13,127.01,3.1827496]
[1769014265667,7.0864,127.1,127.02,7.0906]
[1769014265870,110.2305,127.11,127.01,3.1827496]
[1769014266378,7.0867,127.1,127.01,3.1827496]
[1769014266677,110.2305,127.11,127.01,3.1827496]
[1769014267474,110.2155,127.12,127.01,3.1827496]
[1769014268268,110.1854,127.16,127.04,3.1827496]
[1769014269078,6.47885444,127.18,127.06,3.1827496]
[1769014269368,110.1629,127.18,127.07,3.1827496]
[1769014269568,140.24145444,127.21,127.08,3.1827496]
[1769014269776,110.1463,127.2,127.08,3.1827496]
[1769014269971,110.1426,127.21,127.09,3.1827496]
[1769014270162,110.1343,127.22,127.1,3.1827496]
[1769014270360,110.1343,127.22,127.09,110.2376]
[1769014270361,7.0811,127.2,127.11,10.2683496]
[1769014270566,7.0811,127.2,127.08,110.2433]
[1769014270567,110.1464,127.2,127.08,3.1827496]
[1769014270767,110.1569,127.19,127.08,3.1827496]
[1769014270979,110.1464,127.2,127.08,10.2698496]
[1769014271174,110.1464,127.2,127.06,110.2613]
[1769014271175,116.62215444,127.21,127.09,3.1827496]
[1769014271569,116.62215444,127.21,127.1,7.0862]
[1769014271570,7.0817,127.19,127.1,7.0862]
[1769014271870,6.47885444,127.21,127.1,3.1827496]
[1769014272074,7.0814,127.19,127.1,3.1827496]
[1769014272267,304.13885444,127.24,127.12,3.1827496]
[1769014272469,304.13885444,127.24,127.13,3.1827496]
[1769014272780,297.66,127.24,127.15,10.2660496]
[1769014273172,297.66,127.24,127.13,110.2027]
[1769014273173,297.66,127.24,127.13,7.0843]
[1769014273372,407.7741,127.24,127.13,7.0843]
[1769014273677,297.66,127.24,127.13,3.1827496]
[1769014274566,110.1054,127.25,127.13,3.1827496]
[1769014274766,7.0793,127.23,127.14,7.0838]
[1769014275678,7.0793,127.23,127.14,10.50001861]
[1769014277272,7.0793,127.23,127.15,10.49951861]
[1769014277475,7.0781,127.25,127.16,3.41621861]
[1769014277880,116.57361487,127.27,127.16,10.49901861]
[1769014278081,6.48181487,127.27,127.16,3.41621861]
[1769014278284,6.48181487,127.3,127.18,3.41621861]
[1769014278579,7.0764,127.28,127.2,3.41621861]
[1769014278772,116.54301487,127.3,127.2,3.41621861]
[1769014278975,110.0685,127.29,127.2,3.41621861]
[1769014279184,7.0775,127.26,127.17,3.41621861]
[1769014279582,7.0775,127.26,127.18,3.41621861]
[1769014280088,7.0781,127.25,127.18,3.41621861]
[1769014281787,7.0781,127.25,127.13,3.41621861]
[1769014281788,110.1108,127.24,127.13,3.41621861]
[1769014282381,110.095,127.26,127.15,3.41621861]
[1769014282684,110.1032,127.25,127.15,3.41621861]
[1769014283186,7.0792,127.23,127.15,10.49961861]
[1769014283393,7.0792,127.23,127.16,3.41621861]
[1769014283890,7.0784,127.25,127.17,3.41621861]
[1769014285192,7.0784,127.25,127.17,10.49841861]
[1769014285594,7.0764,127.28,127.18,3.41621861]
[1769014285996,7.0764,127.28,127.19,3.41621861]
[1769014286495,110.0761,127.28,127.19,3.41621861]
[1769014286697,110.0761,127.28,127.16,3.41621861]
[1769014286698,110.0864,127.27,127.16,3.41621861]
[1769014287996,7.0786,127.24,127.16,10.49901861]
[1769014288593,7.0797,127.22,127.14,10.49981861]
[1769014288794,7.0797,127.22,127.12,110.2086]
[1769014288795,7.0797,127.22,127.15,3.41621861]
[1769014289499,110.1231,127.23,127.13,7.0842]
[1769014289689,110.1231,127.23,127.12,3.41621861]
[1769014289893,116.59671487,127.24,127.12,3.41621861]
[1769014290298,110.128,127.22,127.12,10.50101861]
[1769014290505,110.1368,127.21,127.12,3.41621861]
[1769014290695,110.1459,127.2,127.09,3.41621861]
[1769014291496,116.59671487,127.24,127.12,3.41621861]
[1769014292087,116.59671487,127.24,127.14,7.084]
[1769014292911,7.0797,127.22,127.14,7.084]
[1769014294000,7.0797,127.22,127.14,10.50021861]
[1769014294203,7.079,127.24,127.15,10.49961861]
[1769014294406,110.1038,127.25,127.15,10.49961861]
[1769014295696,110.0965,127.26,127.13,7.0841]
[1769014295697,116.59421487,127.24,127.13,7.0841]
[1769014295893,110.1242,127.23,127.14,3.41621861]
[1769014296100,6.48181487,127.24,127.14,3.41621861]
[1769014296301,116.56541487,127.28,127.16,3.41621861]
[1769014296796,7.0788,127.24,127.16,3.41621861]
[1769014297002,110.0854,127.27,127.16,3.41621861]
[1769014297406,7.0786,127.24,127.17,7.0824]
[1769014298112,110.0658,127.3,127.18,3.41621861]
[1769014298409,110.0428,127.32,127.21,3.41621861]
[1769014298799,110.0428,127.32,127.21,10.49631861]
[1769014299210,110.0606,127.3,127.21,3.41621861]
[1769014299810,116.54241487,127.3,127.18,3.41621861]
[1769014300511,7.077,127.27,127.18,3.41621861]
[1769014300710,110.0763,127.28,127.18,3.41621861]
[1769014301002,7.0775,127.26,127.18,3.41621861]
[1769014301215,7.0775,127.26,127.18,10.49791861]
[1769014301601,7.0765,127.28,127.19,3.41621861]
[1769014301905,110.0806,127.28,127.16,3.41621861]
[1769014302306,7.0781,127.25,127.17,10.49821861]
[1769014303217,7.0771,127.27,127.17,3.41621861]
[1769014303512,110.0694,127.29,127.17,3.41621861]
[1769014303513,110.0775,127.28,127.17,3.41621861]
[1769014304406,110.0908,127.27,127.17,3.41621861]
[1769014306005,7.0787,127.24,127.17,10.49851861]
[1769014306204,110.0908,127.27,127.17,10.49851861]
[1769014307110,110.0934,127.26,127.17,3.41621861]
[1769014307304,110.0934,127.26,127.14,113.54972628]
[1769014307502,110.0934,127.26,127.12,110.2097]
[1769014307503,116.58601487,127.25,127.12,113.56982628]
[1769014307807,7.0802,127.21,127.15,7.0834]
[1769014308410,7.0802,127.21,127.13,7.0841]
[1769014308612,7.0802,127.21,127.12,113.56982628]
[1769014309001,7.0802,127.21,127.12,3.36012628]
[1769014309200,7.0802,127.21,127.14,7.0841]
[1769014309417,7.0797,127.22,127.13,3.36012628]
[1769014309614,116.58601487,127.25,127.15,7.0835]
[1769014310617,7.0791,127.23,127.16,7.0829]
[1769014311908,7.0791,127.23,127.14,7.0835]
[1769014312116,7.0797,127.22,127.14,7.0835]
[1769014313826,7.0797,127.22,127.12,7.0849]
[1769014313827,6.48181487,127.22,127.12,7.0849]
[1769014314122,7.0807,127.21,127.11,3.36012628]
[1769014314324,7.0807,127.21,127.14,7.084]
[1769014315519,7.0795,127.23,127.14,7.084]
[1769014315716,6.48181487,127.25,127.15,3.36012628]
[1769014316221,7.079,127.24,127.16,7.0828]
[1769014316624,7.079,127.24,127.17,3.36012628]
[1769014316825,7.079,127.24,127.17,10.44252628]
[1769014317123,110.0665,127.3,127.18,3.36012628]
[1769014317329,116.53771487,127.31,127.19,3.36012628]
[1769014317529,7.0775,127.26,127.19,3.36012628]
[1769014317724,7.0775,127.26,127.11,26.98012628]
[1769014317725,110.1196,127.23,127.11,26.98012628]
[1769014317923,220.3035,127.2,127.08,3.36012628]
[1769014318121,6.48181487,127.19,127.09,3.36012628]
[1769014318430,6.48181487,127.22,127.11,3.24170628]
[1769014318624,7.08,127.22,127.13,3.24170628]
[1769014319320,7.0802,127.21,127.13,10.32590628]
[1769014319529,7.0802,127.21,127.13,3.24170628]
[1769014320118,7.0793,127.23,127.15,7.0834]
[1769014320327,123.94432248,127.3,127.16,3.24170628]
[1769014320328,123.59950253,127.28,127.16,3.24170628]
[1769014320625,14.11038766,127.3,127.21,7.08]
[1769014320924,14.11038766,127.3,127.17,113.41270628]
[1769014320925,110.0603,127.3,127.17,113.41270628]
[1769014321118,110.0687,127.29,127.17,3.24170628]
[1769014321316,110.0861,127.27,127.17,3.24170628]
[1769014321521,110.1207,127.23,127.11,3.24170628]
[1769014322026,7.0803,127.21,127.11,3.24170628]
[1769014322228,110.1392,127.21,127.08,3.24170628]
[1769014322422,110.1392,127.21,127.1,10.32760628]
[1769014322626,7.03478766,127.24,127.12,3.24170628]
[1769014322823,116.58421487,127.25,127.12,3.24170628]